bitfinex/quotes_SOLUSD_20251212
["timestamp","ask_amount","ask_price","bid_price","bid_amount"]
[1765533124007,7.25584095,137.82,137.81,7.94]
[1765533124426,7.37584095,137.82,137.81,7.94]
[1765533124925,7.25584095,137.82,137.81,7.94]
[1765533126416,7.25584095,137.82,137.81,8.63]
[1765533126417,59.6,137.82,137.81,8.63]
[1765533128035,59.6,137.82,137.78,5.10874683]
[1765533128203,59.6,137.82,137.79,7.94]
[1765533128204,66.85636746,137.81,137.79,7.94]
[1765533128403,66.97636746,137.81,137.79,7.94]
[1765533129930,59.6,137.81,137.8,0.69]
[1765533130738,59.6,137.81,137.79,8.63]
[1765533131335,66.85656333,137.81,137.79,7.94]
[1765533132703,66.97656333,137.81,137.79,7.94]
[1765533133538,66.85656333,137.81,137.79,7.94]
[1765533133704,66.85656333,137.81,137.79,8.63]
[1765533133905,59.6,137.81,137.79,8.63]
[1765533134830,66.97639248,137.81,137.79,7.94]
[1765533135411,66.85639248,137.81,137.79,7.94]
[1765533136118,66.97639248,137.81,137.79,7.94]
[1765533137727,66.85689404,137.8,137.79,7.94]
[1765533138036,7.25689404,137.8,137.79,7.94]
[1765533138942,11.67511429,137.81,137.79,7.94]
[1765533139243,4.53874683,137.8,137.79,7.94]
[1765533139409,4.53874683,137.8,137.77,20.9870912]
[1765533139611,25.39728611,137.81,137.77,21.6970912]
[1765533139833,7.25636746,137.81,137.78,0.71]
[1765533141536,7.37636746,137.81,137.77,20.9870912]
[1765533141736,7.37636746,137.81,137.77,21.6970912]
[1765533143568,59.6,137.79,137.77,21.6970912]
[1765533143952,59.6,137.79,137.78,0.71]
[1765533144560,7.3765814,137.81,137.78,0.71]
[1765533145071,7.3765814,137.81,137.77,28.24549867]
[1765533145283,7.3765814,137.81,137.78,0.71]
[1765533145948,7.3765814,137.81,137.77,20.9870912]
[1765533146158,7.3765814,137.81,137.77,21.6970912]
[1765533146360,0.12,137.8,137.77,20.9870912]
[1765533146664,0.12,137.8,137.77,7.94]
[1765533146665,4.54509918,137.8,137.77,7.94]
[1765533147144,4.42509918,137.8,137.77,7.94]
[1765533147348,4.54509918,137.79,137.77,7.94]
[1765533147962,7.25794745,137.78,137.77,7.94]
[1765533148161,7.37794745,137.78,137.77,7.94]
[1765533148365,11.80304663,137.78,137.75,0.2]
[1765533148666,7.25794745,137.78,137.75,8.85]
[1765533149057,7.25794745,137.78,137.76,0.71]
[1765533149645,7.25794745,137.78,137.75,8.14]
[1765533149960,7.25794745,137.78,137.75,8.85]
[1765533150161,7.54174385,137.79,137.75,8.85]
[1765533150367,7.66174385,137.79,137.75,8.85]
[1765533150662,7.25742071,137.79,137.76,0.71]
[1765533151570,7.25710181,137.8,137.76,0.71]
[1765533152262,7.25710181,137.8,137.76,7.96897956]
[1765533152461,7.25710181,137.8,137.77,0.71]
[1765533152845,7.25659141,137.81,137.78,7.94]
[1765533153373,7.25659141,137.81,137.78,8.65]
[1765533153565,7.37659141,137.81,137.78,8.65]
[1765533155066,11.68169059,137.81,137.78,7.94]
[1765533155275,0.12,137.8,137.78,7.94]
[1765533155445,25.51751006,137.81,137.78,7.94]
[1765533155645,25.51751006,137.81,137.78,8.65]
[1765533156172,7.37659141,137.81,137.78,8.65]
[1765533156466,7.25659141,137.81,137.79,0.71]
[1765533156853,22.96840507,137.83,137.79,0.71]
[1765533156854,7.25604153,137.82,137.79,0.71]
[1765533158266,7.25531451,137.83,137.79,0.71]
[1765533158657,7.37531451,137.83,137.79,0.71]
[1765533159974,7.25531451,137.83,137.79,7.96725254]
[1765533160480,7.25531451,137.83,137.8,0.71]
[1765533160860,7.25531451,137.83,137.81,7.94]
[1765533161371,7.25531451,137.83,137.81,8.65]
[1765533162253,25.39249197,137.84,137.81,8.65]
[1765533162454,25.51249197,137.84,137.81,8.65]
[1765533164680,7.37478816,137.84,137.81,8.65]
[1765533165375,7.25478816,137.84,137.82,0.71]
[1765533165770,7.25478816,137.84,137.81,7.94]
[1765533166077,0.12,137.85,137.82,0.71]
[1765533166078,7.25428604,137.85,137.82,0.71]
[1765533168177,29.9338935,137.86,137.82,0.71]
[1765533168352,0.12,137.85,137.82,0.71]
[1765533168681,25.50879432,137.86,137.82,0.71]
[1765533169858,28.33933963,137.86,137.82,0.71]
[1765533171381,28.21933963,137.86,137.82,0.71]
[1765533171789,28.33933963,137.86,137.82,0.71]
[1765533172173,28.21933963,137.86,137.82,0.71]
[1765533172481,25.50879432,137.86,137.82,0.71]
[1765533172861,25.38879432,137.86,137.82,3.54054531]
[1765533173067,7.25373567,137.86,137.82,10.79633857]
[1765533173269,7.25373567,137.86,137.83,0.69]
[1765533173470,7.25373567,137.86,137.84,7.94]
[1765533173884,7.25373567,137.86,137.84,8.63]
[1765533174296,7.25320954,137.87,137.84,8.63]
[1765533177987,25.5062334,137.87,137.84,8.63]
[1765533178487,0.12,137.86,137.84,7.94]
[1765533179385,25.5062334,137.87,137.84,7.94]
[1765533179591,25.5062334,137.87,137.84,8.63]
[1765533180369,0.12,137.86,137.84,7.94]
[1765533180568,2.94978328,137.86,137.84,7.94]
[1765533180982,0.12,137.85,137.84,7.94]
[1765533181289,0.12,137.85,137.82,7.94]
[1765533181666,2.94978328,137.85,137.82,7.94]
[1765533182268,7.25478816,137.84,137.81,0.69]
[1765533182491,7.37478816,137.84,137.82,7.94]
[1765533184275,7.25478816,137.84,137.82,7.94]
[1765533184480,7.25478816,137.84,137.82,8.63]
[1765533185069,7.37478816,137.84,137.82,7.94]
[1765533185690,7.25478816,137.84,137.82,7.94]
[1765533186897,7.37531451,137.83,137.82,7.94]
[1765533187404,7.25531451,137.83,137.82,7.94]
[1765533190176,7.25478816,137.84,137.82,7.94]
[1765533190800,7.37478816,137.84,137.82,7.94]
[1765533192004,10.20457144,137.84,137.82,7.94]
[1765533192301,10.08457144,137.84,137.82,7.94]
[1765533193671,10.20457144,137.84,137.82,7.94]
[1765533193873,0.12,137.83,137.82,7.94]
[1765533194573,2.94978328,137.83,137.79,0.69]
[1765533194905,2.94978328,137.83,137.79,8.63]
[1765533195575,0.40432314,137.83,137.79,8.63]
[1765533195876,7.25584095,137.82,137.79,8.63]
[1765533197379,10.20562423,137.82,137.79,8.63]
[1765533198602,28.3452266,137.82,137.79,7.94]
[1765533198896,2.82978328,137.81,137.79,7.94]
[1765533199197,28.3452266,137.82,137.79,7.94]
[1765533199781,28.3452266,137.82,137.79,8.66]
[1765533204013,28.3452266,137.82,137.79,7.94]
[1765533204384,28.3452266,137.82,137.79,8.66]
[1765533206079,28.3452266,137.82,137.79,0.72]
[1765533206310,28.3452266,137.82,137.79,8.66]
[1765533207818,28.34768263,137.82,137.79,8.66]
[1765533209602,28.22768263,137.82,137.79,7.94]
[1765533209805,28.22768263,137.82,137.8,0.72]
[1765533212517,28.22768263,137.82,137.79,8.66]
[1765533212518,28.34768263,137.82,137.79,8.66]
[1765533213823,28.22768263,137.82,137.8,0.72]
[1765533214194,25.39544332,137.82,137.8,0.72]
[1765533215733,28.22768263,137.82,137.8,0.72]
[1765533221939,25.39544332,137.82,137.8,0.72]
[1765533222233,28.22768263,137.82,137.8,0.72]
[1765533223121,25.39544332,137.82,137.8,0.72]
[1765533224334,28.22768263,137.82,137.8,0.72]
[1765533225129,25.39544332,137.82,137.8,0.72]
[1765533231639,29.94064569,137.82,137.79,7.94]
[1765533231817,29.94064569,137.82,137.79,8.66]
[1765533232917,0.12,137.81,137.79,8.66]
[1765533233231,29.82064569,137.82,137.79,8.66]
[1765533233232,29.94064569,137.82,137.79,8.66]
[1765533235747,59.6,137.81,137.79,8.66]
[1765533236422,7.25689404,137.8,137.79,8.66]
[1765533238451,7.25636746,137.81,137.79,8.66]
[1765533242453,7.25636746,137.81,137.79,7.94]
[1765533242759,25.39544332,137.82,137.8,0.72]
[1765533243750,25.39544332,137.82,137.79,7.94]
[1765533243959,25.51544332,137.82,137.79,8.66]
[1765533244557,29.94084692,137.82,137.79,8.66]
[1765533245457,7.25689404,137.8,137.79,8.66]
[1765533245958,7.25689404,137.8,137.79,7.94]
[1765533246138,7.25689404,137.8,137.79,8.66]
[1765533247764,12.0860942,137.81,137.79,7.94]
[1765533247959,12.0860942,137.81,137.78,0.72]
[1765533247960,0.28432314,137.79,137.75,7.04087864]
[1765533248163,4.4254036,137.77,137.75,8.86]
[1765533248661,4.5454036,137.78,137.75,8.86]
[1765533249765,0.12,137.78,137.75,8.86]
[1765533250062,0.28432314,137.8,137.76,0.72]
[1765533250234,30.1088559,137.8,137.76,0.72]
[1765533250434,4.5454036,137.79,137.76,0.72]
[1765533251569,4.5454036,137.78,137.75,8.86]
[1765533251736,4.5454036,137.78,137.75,8.14]
[1765533252058,7.25847426,137.77,137.76,0.72]
[1765533252833,11.80387786,137.77,137.75,0.2]
[1765533253147,11.68387786,137.77,137.75,8.86]
[1765533253350,7.25847426,137.77,137.75,8.86]
[1765533253554,59.6,137.76,137.75,8.86]
[1765533253753,7.25847426,137.77,137.75,8.86]
[1765533255539,4.5454036,137.76,137.75,0.2]
[1765533255745,4.82972674,137.76,137.75,0.2]
[1765533256971,12.0887279,137.76,137.75,0.2]
[1765533258563,7.6633243,137.76,137.75,0.2]
[1765533258744,12.0887279,137.76,137.75,0.2]
[1765533262381,7.6633243,137.76,137.75,0.2]
[1765533262571,12.0887279,137.76,137.75,0.2]
[1765533263247,7.25900116,137.76,137.75,0.88]
[1765533264271,7.5427974,137.77,137.75,0.88]
[1765533268386,66.85900116,137.76,137.75,0.88]
[1765533269659,66.85900116,137.76,137.75,0.2]
[1765533270683,59.6,137.76,137.75,0.88]
[1765533274381,7.25861805,137.77,137.75,0.88]
[1765533274582,7.25861805,137.77,137.76,0.68]
[1765533274774,7.25794745,137.78,137.76,0.68]
[1765533280287,66.85847426,137.77,137.76,0.68]
[1765533286205,7.25847426,137.77,137.76,0.68]
[1765533287512,7.25794745,137.78,137.76,0.68]
[1765533288102,7.25794745,137.78,137.75,0.2]
[1765533288283,7.37794745,137.78,137.75,0.88]
[1765533288489,7.37794745,137.78,137.76,0.68]
[1765533289303,7.25794745,137.78,137.76,0.68]
[1765533299723,10.091559,137.78,137.76,0.68]
[1765533300311,10.211559,137.78,137.76,0.68]
[1765533300513,10.091559,137.78,137.76,0.68]
[1765533302635,3.23793469,137.77,137.75,0.2]
[1765533302801,2.83361155,137.76,137.75,0.2]
[1765533303135,2.95361155,137.76,137.75,0.2]
[1765533303502,3.23793469,137.77,137.75,0.2]
[1765533303701,7.25900116,137.76,137.75,0.88]
[1765533306113,7.25860203,137.77,137.75,0.88]
[1765533306324,7.25860203,137.77,137.76,0.68]
[1765533306524,7.25777325,137.79,137.76,8.62]
[1765533306724,7.25777325,137.79,137.76,11.45314797]
[1765533306925,7.26057407,137.8,137.76,11.45314797]
[1765533306926,7.25683634,137.81,137.77,3.51314797]
[1765533307427,7.25683634,137.81,137.78,0.68]
[1765533309447,18.13687803,137.85,137.78,0.68]
[1765533309740,10.08793613,137.84,137.78,10.77088203]
[1765533309927,10.20793613,137.84,137.79,0.68]
[1765533310106,10.20793613,137.84,137.8,7.94]
[1765533310637,28.22490653,137.84,137.81,0.68]
[1765533312217,28.34490653,137.84,137.81,0.68]
[1765533312614,25.39175856,137.84,137.81,0.68]
[1765533312835,7.53878384,137.85,137.81,3.51314797]
[1765533313041,7.2544607,137.85,137.81,11.45314797]
[1765533313216,7.2544607,137.85,137.82,0.68]
[1765533314640,10.08760867,137.85,137.8,18.02985349]
[1765533314844,10.20760867,137.85,137.82,0.68]
[1765533315015,3.23747111,137.84,137.81,0.68]
[1765533316463,0.28432314,137.84,137.81,0.68]
[1765533317043,7.25531451,137.83,137.81,8.62]
[1765533317347,7.25531451,137.83,137.81,7.94]
[1765533317522,7.25531451,137.83,137.82,0.65]
[1765533320039,7.25531451,137.83,137.81,8.59]
[1765533321112,7.25531451,137.83,137.82,0.65]
[1765533324139,17.25479527,137.85,137.82,0.65]
[1765533324342,10.000011,137.85,137.82,0.65]
[1765533324542,10.000011,137.85,137.82,7.9058138]
[1765533324744,17.25429194,137.85,137.82,0.65]
[1765533324920,17.25429194,137.85,137.83,0.65]
[1765533327146,17.37429194,137.85,137.82,0.65]
[1765533327857,20.08743991,137.85,137.81,7.94]
[1765533328159,20.20743991,137.85,137.82,0.65]
[1765533330939,17.37429194,137.85,137.82,0.65]
[1765533331352,17.25429194,137.85,137.82,0.65]
[1765533332238,10.000011,137.85,137.82,3.48314797]
[1765533332458,10.000011,137.85,137.83,0.65]
[1765533333348,17.2543337,137.85,137.83,0.65]
[1765533333535,10.000011,137.85,137.83,0.65]
[1765533334558,10.000011,137.85,137.83,7.90529751]
[1765533334960,10.000011,137.85,137.84,0.65]
[1765533336462,10.000011,137.85,137.84,8.59]
[1765533339771,10.000011,137.85,137.84,18.67441215]
[1765533341362,10.000011,137.85,137.84,15.84478816]
[1765533343770,10.000011,137.85,137.84,18.67441215]
[1765533345053,10.000011,137.85,137.84,15.84478816]
[1765533346767,10.000011,137.85,137.84,8.63]
[1765533347674,10.000011,137.85,137.84,0.69]
[1765533347850,10.000011,137.85,137.84,8.63]
[1765533348049,10.000011,137.85,137.84,0.69]
[1765533348246,10.000011,137.85,137.84,8.63]
[1765533349174,10.000011,137.85,137.84,0.69]
[1765533349376,10.000011,137.85,137.84,8.63]
[1765533351185,10.000011,137.85,137.82,7.25569569]
[1765533351357,10.000011,137.85,137.83,8.63]
[1765533354489,10.000011,137.85,137.83,7.94]
[1765533354781,10.000011,137.85,137.84,0.69]
[1765533363378,10.000011,137.85,137.84,7.94478816]
[1765533363558,10.000011,137.85,137.84,12.3671702]
[1765533366292,10.000011,137.85,137.84,27.25191605]
[1765533367988,10.000011,137.85,137.84,37.25192705]
[1765533369699,10.000011,137.85,137.84,31.17712612]
[1765533369886,0.1,137.9,137.89,4.42238204]
[1765533370081,0.1,137.9,137.89,12.36238204]
[1765533370284,0.1,137.9,137.89,13.05238204]
[1765533370681,0.1,137.9,137.89,8.63]
[1765533370899,0.1,137.9,137.89,20.30453955]
[1765533371699,0.1,137.9,137.89,20.29878846]
[1765533372896,0.1,137.9,137.89,29.10873338]
[1765533374598,0.1,137.9,137.89,32.01054338]
[1765533380694,0.1,137.9,137.89,32.51054338]
[1765533381007,0.1,137.9,137.89,29.60873338]
[1765533382408,0.1,137.9,137.89,41.37442603]
[1765533382615,0.1,137.94,137.93,8.80994492]
[1765533382795,0.1,137.94,137.93,34.21366707]
[1765533382997,0.1,137.94,137.93,34.91366707]
[1765533383196,0.32,137.94,137.93,13.0470912]
[1765533383404,0.32,137.94,137.93,20.9870912]
[1765533388214,0.1,137.94,137.93,20.9870912]
[1765533393213,0.32,137.94,137.93,7.94]
[1765533394314,0.1,137.94,137.93,7.94]
[1765533396924,0.1,137.94,137.92,12.36718827]
[1765533397241,0.1,137.94,137.93,7.94]
[1765533397999,0.32,137.94,137.93,7.94]
[1765533400035,0.32,137.94,137.92,7.25055732]
[1765533400237,0.32,137.94,137.93,7.94]
[1765533400413,0.1,137.94,137.93,7.94]
[1765533417151,0.1,137.94,137.93,8.63]
[1765533417838,0.1,137.94,137.93,0.69]
[1765533418229,0.1,137.94,137.93,8.63]
[1765533423758,0.1,137.94,137.93,15.88005437]
[1765533424058,0.1,137.94,137.93,18.70645922]
[1765533424239,0.1,137.94,137.93,25.95450683]
[1765533427157,0.1,137.94,137.93,32.04672646]
[1765533427359,0.1,137.94,137.93,25.95450683]
[1765533428153,0.1,137.94,137.93,45.09381766]
[1765533428356,0.1,137.94,137.93,53.90376258]
[1765533432867,0.1,137.94,137.93,42.85719504]
[1765533433159,0.1,137.95,137.94,2.82640485]
[1765533433356,0.1,137.95,137.94,3.51640485]
[1765533433840,0.1,137.95,137.94,25.27208852]
[1765533434235,0.1,137.95,137.94,34.08203344]
[1765533434641,0.1,137.95,137.94,55.37133352]
[1765533434840,0.1,137.95,137.94,49.27156222]
[1765533435259,0.1,137.95,137.94,55.37206903]
[1765533435832,0.1,137.95,137.94,47.43206903]
[1765533436056,0.1,137.95,137.94,55.37206903]
[1765533436464,0.1,137.95,137.94,55.37033697]
[1765533442572,1e-08,137.95,137.94,49.26983016]
[1765533443455,1e-08,137.95,137.94,55.35961366]
[1765533443935,1e-08,137.95,137.94,49.26983016]
[1765533444141,0.1,137.99,137.97,13.0470912]
[1765533444338,0.1,137.99,137.98,11.43467279]
[1765533446173,0.1,137.99,137.98,27.49204487]
[1765533446645,0.1,137.99,137.98,49.24299647]
[1765533450386,0.1,138.03,138.01,13.0470912]
[1765533450546,0.1,138.03,138.02,10.76467279]
[1765533450858,0.1,138.03,138.02,11.43467279]
[1765533451054,0.1,138.03,138.02,24.48176399]
[1765533451242,0.1,138.03,138.02,33.29170891]
[1765533451447,0.1,138.03,138.02,40.53703567]
[1765533452759,0.32,138.03,138.02,7.24532676]
[1765533453073,0.32,138.03,138.02,18.08482297]
[1765533453651,0.1,138.03,138.02,18.08482297]
[1765533457472,0.1,138.03,138.02,20.90949576]
[1765533457976,0.1,138.03,138.02,30.38944068]
[1765533458383,0.1,138.03,138.02,29.71944068]
[1765533458571,0.1,138.03,138.02,30.38944068]
[1765533463358,0.1,138.03,138.02,27.56476789]
[1765533463558,0.1,138.03,138.02,30.38944068]
[1765533469484,0.1,138.03,138.02,30.38553704]
[1765533473373,0.1,138.03,138.02,30.66986018]
[1765533473575,0.1,138.04,138.03,8.80994492]
[1765533473780,0.1,138.04,138.03,12.35071407]
[1765533474118,0.1,138.04,138.03,19.59551592]
[1765533474768,0.1,138.04,138.03,42.74168303]
[1765533474970,0.1,138.04,138.03,31.0326622]
[1765533476287,0.1,138.04,138.03,32.61962231]
[1765533477894,0.1,138.04,138.03,28.21189305]
[1765533478094,0.1,138.04,138.03,32.61962231]
[1765533478880,0.32,138.04,138.03,28.21189305]
[1765533479081,0.32,138.04,138.03,32.61962231]
[1765533479702,0.32,138.04,138.01,18.11338407]
[1765533479879,0.22,138.03,138.02,15.16532676]
[1765533480900,7.46485348,138.03,138.01,7.92]
[1765533481093,11.87258274,138.03,138.01,7.92]
[1765533481297,4.9120524,138.02,137.96,11.65101205]
[1765533481501,4.9120524,138.02,137.97,7.92]
[1765533481502,4.40772926,138.0,137.97,7.92]
[1765533481688,0.22,137.99,137.97,7.92]
[1765533487504,7.46695367,137.99,137.97,7.92]
[1765533488010,0.22,137.98,137.97,7.92]
[1765533489409,7.46742716,137.98,137.97,7.92]
[1765533490908,7.46742716,137.98,137.93,27.07624308]
[1765533491202,4.62772926,137.97,137.94,7.94]
[1765533491588,0.22,137.96,137.94,7.94]
[1765533492526,0.1,138.04,137.97,13.0470912]
[1765533492689,7.46480185,138.03,137.98,12.34772926]
[1765533492881,7.46480185,138.03,137.98,7.94]
[1765533493084,0.22,138.02,137.98,19.59511232]
[1765533493603,4.9120524,138.02,137.96,4.40772926]
[1765533493920,4.40772926,138.0,137.97,7.94]
[1765533494218,0.50432314,138.01,137.97,7.94]
[1765533494401,0.22,138.0,137.97,7.94]
[1765533495217,0.22,138.0,137.97,15.18793656]
[1765533495595,0.22,138.0,137.97,19.59566582]
[1765533496115,0.22,138.0,137.98,4.40772926]
[1765533497708,7.46649024,138.0,137.97,20.9870912]
[1765533498189,0.22,137.99,137.97,20.9870912]
[1765533498686,7.46702659,137.99,137.98,7.94]
[1765533500616,7.75134973,137.99,137.98,7.94]
[1765533500823,7.75134973,137.99,137.94,11.65711377]
[1765533501111,0.22,137.98,137.95,7.94]
[1765533502509,7.46746046,137.98,137.95,7.94]
[1765533502912,0.22,137.97,137.95,7.94]
[1765533504618,7.53134973,138.01,137.96,5.07436161]
[1765533504818,7.46602727,138.01,137.97,4.41436161]
[1765533505001,56.6,138.0,137.98,12.35436161]
[1765533505321,56.6,138.0,137.98,13.01436161]
[1765533506215,56.6,137.99,137.98,13.01436161]
[1765533506622,56.6,137.99,137.98,20.26178877]
[1765533509318,0.1,138.04,138.01,13.0470912]
[1765533509522,0.1,138.04,138.03,4.41436161]
[1765533509710,0.1,138.04,138.02,12.35436161]
[1765533510413,0.1,138.04,138.03,4.41436161]
[1765533510599,0.1,138.04,138.02,13.01436161]
[1765533511521,0.1,138.04,138.03,4.41436161]
[1765533512227,0.1,138.04,138.03,5.07436161]
[1765533513502,0.1,138.04,138.03,4.41436161]
[1765533513905,0.1,138.04,138.02,20.25953794]
[1765533514211,0.1,138.04,138.03,4.41436161]
[1765533514605,0.1,138.04,138.03,5.07436161]
[1765533515022,0.32,138.04,138.02,12.35436161]
[1765533515199,0.1,138.04,138.02,12.35436161]
[1765533515401,0.1,138.04,138.02,13.01436161]
[1765533515908,0.1,138.04,138.03,11.65916346]
[1765533517018,0.1,138.04,138.03,7.24480185]
[1765533517219,0.1,138.04,138.03,4.41436161]
[1765533517834,0.1,138.04,138.02,15.84511631]
[1765533518036,0.1,138.04,138.03,11.65916346]
[1765533519329,0.1,138.04,138.03,12.31916346]
[1765533519524,0.1,138.04,138.03,7.90480185]
[1765533519722,0.1,138.04,138.03,11.65916346]
[1765533521429,0.1,138.04,138.03,7.24480185]
[1765533521638,0.32,138.04,138.03,11.65916346]
[1765533522017,0.1,138.04,138.03,11.65916346]
[1765533522217,0.1,138.04,138.03,12.31916346]
[1765533523237,0.32,138.13,138.07,13.0470912]
[1765533523440,0.32,138.13,138.1,4.41436161]
[1765533523642,0.32,138.13,138.1,12.35436161]
[1765533523819,0.32,138.13,138.11,4.41436161]
[1765533524741,0.1,138.18,138.17,13.0470912]
[1765533525039,0.32,138.25,138.17,38.62575934]
[1765533525221,0.32,138.25,138.24,4.41436161]
[1765533525421,0.32,138.25,138.23,4.41436161]
[1765533525614,0.32,138.25,138.22,4.41436161]
[1765533526314,0.32,138.25,138.23,4.41436161]
[1765533526517,0.99999999,138.4,138.24,8.82872322]
[1765533526838,0.99999999,138.4,138.33,4.41436161]
[1765533526839,7.22543352,138.4,138.33,4.41436161]
[1765533527038,20.27252472,138.4,138.34,4.41436161]
[1765533527335,20.27252472,138.4,138.31,13.0470912]
[1765533527336,4.41436161,138.42,138.36,4.41436161]
[1765533527721,4.41436161,138.37,138.32,13.0470912]
[1765533528039,7.92,138.37,138.29,13.7570912]
[1765533528239,21.85703612,138.38,138.28,13.0470912]
[1765533528240,11.64867399,138.35,138.28,13.0470912]
[1765533528424,3.77413043,138.45,138.34,11.64867399]
[1765533528736,83.08998961,138.51,138.34,11.64867399]
[1765533528737,7.22338251,138.44,138.4,11.64867399]
[1765533528943,11.64867399,138.44,138.38,13.0470912]
[1765533529168,7.92,138.43,138.36,0.71]
[1765533529449,7.92,138.43,138.37,11.64867399]
[1765533529652,7.92,138.43,138.39,11.64867399]
[1765533530020,7.92,138.43,138.38,11.64867399]
[1765533530221,11.64867399,138.42,138.36,12.35867399]
[1765533530452,0.14216157,138.41,138.36,24.00734798]
[1765533530637,11.64867399,138.38,138.36,11.64867399]
[1765533530838,0.28432314,138.37,138.34,7.22855511]
[1765533531155,11.93299713,138.37,138.33,7.22879195]
[1765533531452,19.85299713,138.37,138.33,7.22879195]
[1765533531952,11.64867399,138.45,138.39,13.0470912]
[1765533532137,11.64867399,138.48,138.41,24.69576519]
[1765533532339,11.64867399,138.45,138.38,11.64867399]
[1765533532547,19.56867399,138.44,138.38,7.22647781]
[1765533532739,0.14216157,138.43,138.39,11.64867399]
[1765533532945,0.14216157,138.43,138.38,7.93647781]
[1765533533155,0.99999999,138.48,138.38,25.29267234]
[1765533533347,11.64867399,138.46,138.38,25.29267234]
[1765533533554,11.79083556,138.44,138.38,18.8751518]
[1765533533756,0.28432314,138.42,138.38,18.8751518]
[1765533533939,0.28432314,138.42,138.38,7.22647781]
[1765533535237,56.6,138.57,138.46,8.80994492]
[1765533535439,111.06889428,138.63,138.49,11.63753277]
[1765533535440,8.2155278,138.59,138.49,11.63753277]
[1765533535639,11.63753277,138.57,138.5,11.63753277]
[1765533535966,7.14836125,138.57,138.52,7.14836125]
[1765533536177,7.21552781,138.59,138.52,7.14836125]
[1765533536339,15.06836125,138.58,138.5,0.71]
[1765533536667,7.14836125,138.57,138.52,7.14836125]
[1765533537142,7.21673177,138.57,138.5,0.71]
[1765533537345,7.21673177,138.57,138.52,7.14836125]
[1765533537865,13.0470912,138.55,138.51,7.14836125]
[1765533538073,0.28432314,138.54,138.52,7.14836125]
[1765533538372,35.33154825,138.58,138.51,7.21961619]
[1765533538545,0.14216157,138.55,138.49,25.27237364]
[1765533538742,0.14216157,138.55,138.5,7.14836125]
[1765533538949,7.43268439,138.53,138.48,7.14836125]
[1765533539191,7.43268439,138.53,138.48,14.36955648]
[1765533540068,7.92,138.54,138.49,7.14836125]
[1765533540374,7.14836125,138.5,138.43,0.71]
[1765533540571,15.06836125,138.49,138.43,7.85836125]
[1765533540759,22.28912968,138.49,138.43,15.08213676]
[1765533540959,15.14076843,138.49,138.44,7.22326076]
[1765533541162,7.92,138.49,138.44,7.93326076]
[1765533541361,7.43268439,138.51,138.46,7.14836125]
[1765533541557,0.28432314,138.49,138.44,7.22326076]
[1765533541958,8.18432314,138.49,138.45,7.85836125]
[1765533542158,15.33268439,138.49,138.44,7.22326076]
[1765533542359,15.33268439,138.49,138.44,7.93326076]
[1765533542653,0.28432314,138.45,138.4,0.71]
[1765533542966,7.9,138.46,138.42,7.14836125]
[1765533543277,7.21969532,138.51,138.43,7.14836125]
[1765533543458,7.14836125,138.49,138.44,7.14836125]
[1765533543775,15.04836125,138.5,138.44,7.14836125]
[1765533543977,7.14836125,138.49,138.44,7.14836125]
[1765533544378,7.14836125,138.49,138.44,14.37159344]
[1765533544671,14.36925873,138.49,138.44,15.08159344]
[1765533544864,14.36925873,138.49,138.42,18.05987772]
[1765533544865,7.43268439,138.48,138.42,14.37230697]
[1765533545071,7.43268439,138.48,138.42,15.08230697]
[1765533545273,15.33268439,138.48,138.42,7.93394572]
[1765533545478,8.18432314,138.48,138.44,7.14836125]
[1765533545683,25.27274237,138.49,138.44,14.37163744]
[1765533545684,7.22089748,138.49,138.44,14.37163744]
[1765533545991,7.22089748,138.49,138.44,0.71]